bitfinex/quotes_ETHUSD_20260225
["timestamp","ask_amount","ask_price","bid_price","bid_amount"]
[1772058958352,4.09868217,2106.4,2106.0,1.18728452]
[1772058958740,4.09868217,2106.6,2106.0,1.18728452]
[1772058958933,5.28548492,2106.5,2105.9,1.18714088]
[1772058959142,4.09868217,2106.4,2105.9,1.18714088]
[1772058959764,0.002,2106.3,2105.9,1.18714088]
[1772058959968,4.09868217,2106.4,2105.9,1.18714088]
[1772058960177,0.002,2106.3,2105.9,1.18714088]
[1772058960865,0.002,2106.2,2105.9,1.18714088]
[1772058961074,2.056,2106.1,2105.8,0.001]
[1772058962488,4.09868217,2106.0,2105.8,0.001]
[1772058963379,4.09868217,2106.0,2105.8,0.0002]
[1772058964475,5.28577036,2106.0,2105.8,0.0002]
[1772058964783,4.10068217,2105.9,2105.1,1.18759203]
[1772058965153,4.09868217,2105.8,2105.1,1.18759203]
[1772058965356,4.09868217,2105.7,2105.1,1.18759203]
[1772058967764,4.09868217,2105.7,2104.9,9.27275734]
[1772058967952,0.002,2105.6,2104.9,9.27275734]
[1772058968158,0.002,2105.6,2104.9,9.27195734]
[1772058968354,4.10068217,2105.6,2104.9,9.27195734]
[1772058968675,5.2879922,2105.6,2104.9,9.27195734]
[1772058968858,5.2879922,2105.6,2104.9,4.75001849]
[1772058968859,4.09868217,2105.5,2104.9,4.75001849]
[1772058969886,4.10068217,2105.4,2104.8,4.52193885]
[1772058970058,4.10068217,2105.4,2104.4,4.7515193]
[1772058970059,4.09868217,2105.4,2104.5,4.52193885]
[1772058970259,4.10068217,2105.3,2104.5,4.52193885]
[1772058970478,2.056,2105.2,2104.5,4.52193885]
[1772058971386,0.002,2105.1,2104.5,4.52193885]
[1772058972887,0.002,2105.1,2104.6,1.18787418]
[1772058973271,0.002,2105.1,2104.6,5.70901303]
[1772058973982,0.002,2105.1,2104.1,1.3176988]
[1772058973983,4.09868217,2105.0,2104.1,4.52193885]
[1772058974295,4.09868217,2105.0,2104.2,4.52193885]
[1772058974586,4.10068217,2105.0,2104.1,1.18815645]
[1772058974992,4.09868217,2104.8,2103.9,9.27600738]
[1772058975664,4.09868217,2104.8,2103.9,4.75406853]
[1772058975867,0.002,2104.7,2104.0,4.52193885]
[1772058976677,0.002,2104.7,2104.5,0.001]
[1772058977481,2.056,2105.2,2104.5,4.52293885]
[1772058978002,6.15468217,2105.2,2104.5,4.52293885]
[1772058978205,6.15388217,2105.2,2104.5,4.52293885]
[1772058979195,0.002,2105.1,2104.6,1.18787418]
[1772058979392,0.002,2105.1,2104.6,5.70981303]
[1772058980310,0.002,2105.1,2104.6,1.18787418]
[1772058981990,0.002,2105.1,2104.5,4.75252052]
[1772058983203,4.10068217,2105.1,2104.5,4.75252052]
[1772058985887,4.10068217,2105.1,2104.5,8.94682683]
[1772058986087,0.002,2105.1,2104.6,4.19430631]
[1772058986608,2.0552,2105.2,2104.7,1.18781774]
[1772058986811,0.002,2105.1,2104.7,1.18781774]
[1772058988406,0.002,2105.1,2104.7,4.19430631]
[1772058988987,0.002,2105.0,2104.7,4.19430631]
[1772058989908,2.0572,2105.2,2104.9,4.19430631]
[1772058990087,0.002,2105.5,2104.9,4.19430631]
[1772058990282,2.051,2105.4,2104.9,4.19430631]
[1772058990606,0.002,2105.5,2105.1,4.19430631]
[1772058993394,0.002,2105.5,2105.2,1.18753562]
[1772058994413,4.17969137,2105.4,2104.6,5.51291558]
[1772058995712,4.17969137,2105.2,2104.6,5.51291558]
[1772058996294,4.17969137,2105.2,2104.5,1.18893022]
[1772058996498,4.17969137,2105.2,2104.5,0.001]
[1772058996699,4.17969137,2105.2,2104.5,1.18892706]
[1772058996897,4.17969137,2105.2,2104.5,0.001]
[1772058997311,4.17969137,2105.2,2104.5,1.18892785]
[1772058997516,4.17969137,2105.2,2104.5,0.001]
[1772058997712,4.17969137,2105.0,2104.5,0.001]
[1772058999494,4.17969137,2104.8,2104.2,0.001]
[1772058999693,4.17969137,2104.8,2104.0,0.001]
[1772058999694,4.17969137,2104.6,2104.0,0.001]
[1772058999925,4.17969137,2104.6,2103.6,1.18943708]
[1772059000097,4.17969137,2104.6,2103.6,0.001]
[1772059000296,4.17969137,2104.6,2103.6,1.18943722]
[1772059002308,4.17969137,2104.4,2103.6,1.18943722]
[1772059002816,4.17969137,2104.4,2104.2,0.001]
[1772059005424,2.053,2104.3,2104.2,0.001]
[1772059008802,4.17969137,2104.2,2103.7,0.001]
[1772059011007,5.36783333,2104.2,2103.7,0.001]
[1772059013225,4.17969137,2104.1,2103.7,0.001]
[1772059014633,4.17969137,2104.1,2103.9,0.001]
[1772059014841,4.18169137,2104.1,2103.6,0.001]
[1772059015025,4.18169137,2104.1,2103.4,0.001]
[1772059015217,4.17969137,2103.9,2103.4,0.001]
[1772059016336,4.17969137,2103.9,2102.8,4.28986028]
[1772059016337,4.37032877,2103.7,2102.8,4.28986028]
[1772059016537,4.37032877,2103.4,2102.6,0.001]
[1772059017111,4.37032877,2103.2,2102.6,0.001]
[1772059017333,4.37032877,2103.0,2102.6,0.001]
[1772059018033,4.37032877,2103.0,2102.4,0.001]
[1772059019318,4.37032877,2102.8,2102.4,0.001]
[1772059019529,4.37032877,2102.6,2102.4,0.001]
[1772059019811,4.37032877,2102.6,2102.1,0.001]
[1772059020012,4.37032877,2102.6,2101.6,1.18956985]
[1772059020208,4.37032877,2102.6,2101.5,9.04813968]
[1772059020209,4.37032877,2102.3,2101.5,1.18958741]
[1772059021018,4.37032877,2102.3,2101.5,5.47944769]
[1772059021216,4.37032877,2102.0,2100.9,4.28986028]
[1772059021438,3.24840006,2101.9,2101.0,4.28986028]
[1772059021737,2.059,2101.9,2101.2,4.28986028]
[1772059021938,2.059,2101.9,2101.5,4.28986028]
[1772059022139,0.77,2102.4,2101.8,4.28986028]
[1772059022450,0.77,2102.4,2101.8,4.09986028]
[1772059023528,0.77,2102.4,2101.9,1.18940006]
[1772059024135,0.77,2102.4,2101.8,5.28928687]
[1772059024136,1.95911838,2102.4,2101.8,5.28928687]
[1772059024536,1.95911838,2102.4,2101.8,4.09986028]
[1772059024718,1.95911838,2102.4,2101.8,5.28931291]
[1772059025244,1.95821838,2102.4,2101.8,5.28931291]
[1772059025437,1.95821838,2102.4,2101.8,5.28931591]
[1772059025745,6.32854715,2102.4,2101.7,1.18947142]
[1772059026343,6.32854715,2102.4,2101.3,4.28986028]
[1772059026575,4.37032877,2102.3,2101.3,4.28986028]
[1772059027068,2.26143186,2102.3,2101.3,4.28986028]
[1772059027223,4.37032877,2102.2,2101.2,1.1897963]
[1772059027422,4.37032877,2102.2,2101.2,1.1907963]
[1772059027620,4.37232877,2102.2,2101.2,1.1907963]
[1772059027823,4.37032877,2102.0,2101.2,0.001]
[1772059028541,4.37032877,2102.0,2101.2,4.29086028]
[1772059029545,4.37032877,2102.0,2101.2,0.001]
[1772059029758,1.18940006,2101.9,2101.2,0.001]
[1772059030046,5.55972883,2101.9,2101.2,0.001]
[1772059031438,4.37032877,2101.8,2101.2,0.001]
[1772059031646,2.059,2101.7,2101.2,0.001]
[1772059032228,1.18956985,2101.6,2101.2,0.001]
[1772059032597,5.55989862,2101.6,2101.2,0.001]
[1772059033950,2.059,2101.7,2101.2,4.29086028]
[1772059034155,3.24852365,2101.7,2101.2,4.29086028]
[1772059034335,3.24852365,2101.7,2101.2,5.48063349]
[1772059034530,2.059,2101.7,2101.2,5.48063349]
[1772059034747,3.24851861,2101.7,2101.2,5.48063349]
[1772059034932,3.24851861,2101.7,2100.7,0.001]
[1772059034933,1.53356841,2101.3,2100.5,0.001]
[1772059035652,1.53358095,2101.6,2100.6,4.28986028]
[1772059036433,2.81390408,2101.5,2100.6,4.28986028]
[1772059036831,1.18962645,2101.5,2100.6,4.28986028]
[1772059037027,1.18962645,2101.5,2100.5,0.001]
[1772059037028,1.62427763,2101.1,2100.5,0.001]
[1772059037232,3.68396982,2101.0,2100.5,0.001]
[1772059037630,2.06,2101.0,2100.5,0.001]
[1772059038030,3.68396982,2101.0,2100.5,0.001]
[1772059038464,1.1899662,2100.9,2100.5,0.001]
[1772059038659,2.81356632,2100.9,2100.5,0.001]
[1772059038858,1.62360012,2100.8,2100.1,4.29086028]
[1772059039934,1.1899662,2100.9,2100.2,4.28986028]
[1772059040364,1.1899662,2100.9,2100.8,0.001]
[1772059040556,1.1899662,2100.9,2100.3,4.28986028]
[1772059040761,1.1899662,2100.9,2100.5,0.001]
[1772059040933,1.19154208,2101.7,2100.8,2.26143186]
[1772059041274,1.19152104,2101.7,2100.9,4.28986028]
[1772059041765,2.81381771,2101.7,2100.9,4.28986028]
[1772059041942,1.62229667,2101.5,2100.5,0.001]
[1772059042141,2.253363,2101.4,2100.5,4.29086028]
[1772059042343,1.62177944,2101.6,2100.5,4.29086028]
[1772059042546,1.62177944,2101.4,2100.5,4.29086028]
[1772059044634,1.18973968,2101.3,2100.5,0.001]
[1772059044829,1.18973968,2101.3,2100.7,4.28986028]
[1772059046960,3.25266793,2101.5,2100.8,4.14025545]
[1772059049435,1.6210119,2101.4,2100.5,4.14125545]
[1772059049636,1.6210119,2101.4,2100.6,4.14025545]
[1772059049836,1.6210119,2101.4,2100.5,0.001]
[1772059050036,1.6210119,2101.2,2100.5,0.001]
[1772059050274,1.6199119,2101.2,2100.5,0.001]
[1772059051040,3.25266793,2101.5,2100.3,0.001]
[1772059051041,1.61821695,2100.9,2100.3,0.001]
[1772059051241,2.064,2100.8,2100.3,0.001]
[1772059051455,1.19007949,2100.7,2100.3,0.001]
[1772059051653,1.62187922,2100.6,2100.1,0.001]
[1772059053468,1.19019281,2100.5,2100.1,0.001]
[1772059054375,1.19016551,2100.6,2100.3,0.001]
[1772059054789,2.8091014,2100.6,2100.3,0.001]
[1772059055096,2.8091014,2100.6,2100.1,0.001]
[1772059056055,4.76032064,2100.7,2100.2,4.30159718]
[1772059056295,4.76032064,2100.7,2100.1,0.001]
[1772059056447,3.25405724,2100.8,2100.1,4.30259718]
[1772059056775,2.064,2100.8,2100.3,4.30159718]
[1772059057359,2.064,2100.8,2100.2,2.65356158]
[1772059057360,0.002,2101.3,2100.5,4.30159718]
[1772059057785,0.002,2101.5,2101.2,4.30159718]
[1772059058081,0.002,2101.7,2101.5,4.30159718]
[1772059058380,0.002,2101.7,2100.7,4.30159718]
[1772059058548,1.19351765,2101.7,2100.9,4.30159718]
[1772059058977,0.002,2101.6,2100.9,4.30159718]
[1772059059175,0.002,2101.6,2101.0,4.30159718]
[1772059059885,0.002,2101.6,2101.1,1.18985293]
[1772059060098,0.002,2101.6,2101.2,4.30159718]
[1772059060575,0.002,2101.7,2101.2,4.30159718]
[1772059060784,0.002,2101.6,2101.2,4.30159718]
[1772059061197,0.002,2101.6,2100.9,4.30159718]
[1772059061355,0.002,2101.6,2100.9,5.4915571]
[1772059061777,0.002,2101.6,2100.7,4.76022202]
[1772059061778,0.002,2101.6,2100.7,4.30159718]
[1772059061980,1.18934348,2102.0,2100.2,2.65356158]
[1772059061981,0.002,2104.1,2101.6,4.30159718]
[1772059062286,4.16526064,2103.9,2103.0,4.16926]
[1772059062975,9.04621845,2103.8,2103.0,4.16926]
[1772059063671,9.04621845,2103.7,2103.1,4.30159718]
[1772059063869,9.04621845,2103.9,2103.1,4.30159718]
[1772059064065,1.18832588,2103.8,2103.3,4.16926]
[1772059064958,9.04621845,2103.7,2103.3,4.16926]
[1772059065161,11.11421845,2103.7,2103.3,4.16926]
[1772059065978,9.04621845,2103.6,2103.3,4.16926]
[1772059066181,2.068,2103.7,2103.3,9.65945433]
[1772059066475,2.046,2103.8,2103.7,2.10126]
[1772059068173,3.23437208,2103.8,2103.4,4.30159718]
[1772059068770,2.046,2103.8,2103.4,4.30159718]
[1772059068968,2.046,2103.8,2103.4,5.49013557]
[1772059069280,2.046,2103.8,2103.4,5.49013429]
[1772059069692,2.046,2103.8,2103.4,4.30159718]
[1772059070273,2.046,2103.8,2103.4,5.49014492]
[1772059070675,2.046,2103.8,2103.4,1.18854774]
[1772059070904,2.046,2103.8,2103.5,4.30159718]
[1772059071106,11.09221845,2103.8,2103.5,4.30159718]
[1772059071309,12.28055387,2103.8,2103.5,4.30159718]
[1772059072194,11.09221845,2103.8,2103.5,4.30159718]
[1772059072395,12.28056327,2103.8,2103.5,4.30159718]
[1772059073094,9.04621845,2103.8,2103.5,4.30159718]
[1772059073307,1.19029264,2103.9,2103.3,1.18856487]
[1772059073308,4.16526064,2105.0,2103.9,6.53473918]
[1772059073478,4.16526064,2105.0,2103.9,4.30159718]
[1772059074011,15.40630892,2104.9,2103.9,4.30159718]
[1772059074182,1.1877613,2104.8,2103.9,4.30159718]
[1772059074380,1.1877613,2104.8,2104.0,4.30159718]
[1772059074781,15.40630892,2104.7,2104.0,4.30159718]
[1772059074992,4.16526064,2104.6,2103.5,5.49008513]
[1772059075196,4.16526064,2104.4,2103.5,4.30159718]
[1772059075704,4.16526064,2104.4,2103.3,1.18856004]
[1772059075705,15.40630892,2104.3,2102.9,6.01607276]
[1772059076005,4.63090531,2104.2,2102.9,6.01607276]
[1772059076196,1.18815645,2104.1,2102.9,6.01607276]
[1772059077178,15.40630892,2104.0,2103.4,4.8272383]
[1772059077504,1.18803246,2104.4,2103.1,4.8272383]
[1772059077505,4.63090531,2104.1,2103.1,4.8272383]
[1772059077678,2.069,2103.9,2103.1,4.8272383]
[1772059078202,2.069,2103.9,2103.1,4.8264383]
[1772059078387,3.25732502,2103.9,2103.2,1.18866489]
[1772059078806,15.40630892,2103.8,2103.1,4.8272383]
[1772059079019,3.25732502,2103.9,2103.1,6.01594143]
[1772059079306,15.40630892,2103.8,2103.1,6.01594143]
[1772059079914,15.40630892,2103.8,2103.3,0.001]
[1772059080086,3.25728633,2103.9,2103.3,0.001]
[1772059080293,16.5946367,2103.8,2103.3,0.001]
[1772059080693,0.002,2103.7,2103.3,0.001]
[1772059080893,20.03921423,2103.7,2103.3,0.001]
[1772059081188,15.40630892,2103.6,2103.3,0.001]
[1772059081801,0.002,2103.7,2103.3,4.8282383]
[1772059081999,15.40630892,2103.6,2103.3,4.8282383]
[1772059082214,15.40630892,2103.6,2103.4,1.18855186]
[1772059082522,15.40630892,2103.6,2103.3,6.01684545]
[1772059082729,15.40630892,2103.6,2103.3,4.8282383]
[1772059083529,15.40630892,2103.6,2103.3,0.001]
[1772059084103,16.59477947,2103.6,2103.0,6.01698673]
[1772059084811,16.59475179,2103.6,2103.0,6.01699129]
[1772059085012,16.59475179,2103.6,2103.0,6.01700351]
[1772059085823,16.59475179,2103.6,2103.0,6.01700814]
[1772059086029,16.59475125,2103.6,2103.0,6.01700814]
[1772059087237,15.40630892,2103.6,2103.0,6.01700814]
[1772059090250,1.19038392,2103.7,2103.0,6.01700814]
[1772059090448,15.40630892,2103.6,2103.0,6.01700814]
[1772059090650,0.002,2103.7,2103.0,6.01700814]
[1772059090854,15.40630892,2103.6,2103.0,6.01700814]
[1772059093547,15.40630892,2103.6,2103.2,0.001]
[1772059093753,15.40630892,2103.6,2103.3,4.8272383]
[1772059093950,0.002,2103.4,2103.3,4.8272383]
[1772059094252,17.49930892,2103.6,2103.3,4.8272383]
[1772059095449,2.093,2103.6,2103.3,4.8272383]
[1772059095628,2.093,2103.6,2103.4,1.18855186]
[1772059095818,2.093,2103.6,2103.4,6.01579016]
[1772059096219,2.093,2103.6,2103.4,4.8272383]
[1772059098147,2.093,2103.6,2103.4,6.01574102]
[1772059100458,17.49930892,2103.6,2103.4,6.01574102]
[1772059101455,17.49930892,2103.6,2103.4,1.18850272]
[1772059101651,4.63090531,2103.5,2103.2,0.001]
[1772059101826,4.63090531,2103.5,2103.0,0.001]
[1772059102954,1.18855186,2103.4,2103.0,0.001]
[1772059104955,4.63090531,2103.4,2103.0,0.001]
[1772059106047,4.63090531,2103.4,2103.2,0.001]
[1772059106237,4.63090531,2103.4,2103.2,0.00019852]
[1772059106438,4.63290531,2103.4,2103.2,0.00019852]
[1772059107030,1.18860837,2103.3,2103.0,0.001]
[1772059107231,16.59471877,2103.3,2103.0,0.001]
[1772059108756,15.4061104,2103.3,2103.0,4.73116229]
[1772059108962,0.002,2103.4,2103.1,3.68593665]
[1772059109128,10.40914333,2103.4,2103.1,3.68593665]
[1772059109853,10.40914333,2103.4,2103.1,4.87464951]
[1772059110054,0.002,2103.4,2103.1,4.87464951]
[1772059112963,0.002,2103.7,2103.2,3.7685197]
[1772059113264,12.50414333,2103.7,2103.3,4.95712807]
[1772059116347,12.44414333,2103.7,2103.3,4.95712807]
[1772059118167,12.44414333,2103.7,2103.3,4.95812807]
[1772059118382,0.002,2103.5,2103.3,4.95812807]
[1772059118584,3.3e-07,2103.6,2103.3,1.18960837]
[1772059118788,2.106,2103.8,2103.5,3.79672479]
[1772059119065,0.002,2103.9,2103.5,3.79672479]
[1772059119270,2.117,2103.9,2103.5,3.79672479]
[1772059120269,2.117,2103.9,2103.6,1.18843886]
[1772059122702,2.117,2103.9,2103.6,4.04687078]
[1772059122977,0.002,2103.9,2103.6,4.04687078]
[1772059125357,0.002,2103.9,2103.7,1.18838237]
[1772059127089,0.002,2103.9,2103.6,5.23526634]
[1772059127984,0.002,2103.9,2103.7,4.03897199]
[1772059129564,0.002,2104.0,2103.7,4.03897199]
[1772059130484,0.002,2104.0,2103.8,1.18832588]
[1772059130871,0.002,2103.9,2103.8,1.18832588]
[1772059131176,0.002,2104.0,2103.9,4.03188793]
[1772059131382,4.65729631,2104.2,2103.8,1.64046243]
[1772059132983,4.65729631,2104.2,2104.0,0.45213655]
[1772059132984,0.002,2104.2,2104.0,0.45213655]
[1772059134363,0.002,2104.2,2104.0,4.47840063]
[1772059135104,4.65729631,2104.2,2103.8,4.47840063]
[1772059135275,4.65729631,2104.2,2103.8,5.6667219]
[1772059135596,4.65729631,2104.2,2104.0,0.45213655]
[1772059137397,4.65729631,2104.2,2103.9,1.18822881]
[1772059138391,0.002,2104.2,2103.9,5.1812874]
[1772059138963,0.002,2104.2,2103.8,4.75317941]
[1772059138964,5.09746576,2104.2,2103.8,1.1882857]
[1772059139367,5.09746576,2104.2,2103.9,3.98517593]
[1772059139678,0.002,2104.2,2103.9,3.98517593]
[1772059139877,5.09546576,2104.5,2103.9,3.98517593]
[1772059140097,5.09546576,2104.5,2104.0,3.98517593]
[1772059141169,1.18785869,2104.7,2104.0,3.98517593]
[1772059141465,1.18785869,2104.7,2104.2,3.96957675]
[1772059141466,6.28328678,2104.7,2104.2,3.96957675]
[1772059141868,5.86572879,2104.2,2103.0,4.6901056]
[1772059142093,5.09546576,2104.0,2103.0,6.95093912]
[1772059142290,5.09546576,2104.0,2103.1,1.18871882]
[1772059142592,5.09546576,2104.0,2103.0,8.13967522]
[1772059143397,5.09546576,2103.8,2103.0,8.13967522]
[1772059143603,5.09546576,2103.8,2103.4,0.001]
[1772059145390,5.09546576,2103.6,2103.4,0.0002]
[1772059145592,5.09546576,2103.6,2103.0,0.001]
[1772059149310,5.09546576,2103.4,2103.0,0.001]
[1772059149603,5.09546576,2103.3,2103.0,0.001]
[1772059150374,5.09546576,2103.3,2103.0,0.0002]
[1772059151406,6.2840747,2103.3,2103.0,0.0002]
[1772059155401,6.2840747,2103.3,2102.8,0.001]
[1772059155591,6.2832747,2103.3,2102.8,0.001]
[1772059157177,6.2832747,2103.3,2102.3,1.18916061]
[1772059157405,6.2832747,2103.3,2102.4,4.44749225]
[1772059157607,6.2832747,2103.3,2101.7,3.79]
[1772059157608,5.09546576,2102.7,2101.5,4.44749225]
[1772059157907,5.09546576,2102.2,2101.2,1.18975573]
[1772059158108,5.09546576,2102.2,2101.3,4.44749225]
[1772059158287,5.09546576,2102.1,2101.3,4.44749225]
[1772059158492,5.09546576,2101.9,2101.1,4.51845402]
[1772059159089,5.09546576,2101.8,2100.9,4.51845402]
[1772059159707,5.09546576,2101.8,2100.8,1.1900162]
[1772059160118,5.09546576,2101.6,2100.8,1.1900162]
[1772059160414,5.09546576,2101.6,2100.9,4.51681632]
[1772059160593,5.09546576,2101.6,2100.7,5.70689207]
[1772059160796,5.09546576,2101.6,2100.6,1.19009686]
[1772059161388,5.09546576,2101.6,2100.6,5.70601724]
[1772059162510,5.09546576,2101.6,2100.6,4.51592038]
[1772059162511,5.09546576,2101.4,2100.6,4.51592038]
[1772059162718,5.09546576,2101.2,2100.5,0.001]
[1772059163897,5.09546576,2101.2,2100.3,0.001]
[1772059164312,5.09546576,2100.9,2100.3,0.001]
[1772059164527,2.26083352,2101.0,2100.3,0.001]
[1772059164528,5.09546576,2100.7,2100.3,0.001]
[1772059164725,6.28560191,2100.6,2100.3,0.001]
[1772059165226,6.28560191,2100.6,2100.1,0.001]
[1772059166809,6.28560191,2100.6,2099.3,5.70803346]
[1772059166810,2.26083352,2100.5,2099.3,5.70803346]
[1772059167014,4.71576412,2100.3,2099.3,1.19087033]
[1772059167908,4.71576412,2100.3,2099.2,4.5159362]
[1772059168113,4.71576412,2100.3,2099.2,5.70685913]
[1772059168523,4.71576412,2100.3,2099.1,1.19094845]
[1772059168746,4.71576412,2100.1,2098.9,13.770058]
[1772059168956,4.71576412,2100.1,2098.7,1.19118335]
[1772059168957,4.71576412,2100.1,2098.8,8.737103]
[1772059169101,4.71576412,2100.1,2098.8,5.997968]
[1772059169304,4.71576412,2100.1,2098.8,4.127447]
[1772059169604,4.71576412,2100.1,2098.7,1.19118335]
[1772059170140,4.71576412,2100.1,2099.0,13.770058]
[1772059170299,4.71576412,2100.1,2098.9,13.770058]
[1772059171109,4.80752645,2099.9,2099.0,13.770058]
[1772059171317,4.80752645,2099.7,2099.0,13.770058]
[1772059173027,4.80752645,2099.5,2098.9,13.770058]
[1772059173199,4.80752645,2099.5,2099.0,13.770058]
[1772059173831,4.80752645,2099.7,2099.1,4.51257656]
[1772059174031,5.99798116,2100.1,2099.9,4.807526]
[1772059174237,2.13,2099.9,2099.3,4.51257656]
[1772059174605,5.99798116,2100.1,2099.3,4.51257656]
[1772059174921,2.13,2100.0,2099.4,6.7718311]
[1772059175109,2.13,2100.0,2099.5,1.1907597]
[1772059175302,2.1291,2099.9,2099.5,5.77341666]
[1772059176208,4.80752645,2099.8,2099.3,3.3468]
[1772059177026,1.19121357,2100.3,2099.6,8.02413499]
[1772059177203,1.19121357,2100.3,2099.6,5.7716024]
[1772059177607,1.19121357,2100.3,2099.7,2.26083352]
[1772059177840,0.0009,2100.3,2099.7,2.26083352]
[1772059178004,1.19120625,2100.3,2099.7,2.26083352]
[1772059178403,5.9987327,2100.3,2099.6,5.7716024]
[1772059178605,4.80842645,2100.3,2099.6,5.7716024]
[1772059179021,0.0009,2100.3,2099.8,8.06095985]
[1772059179604,4.80752645,2100.2,2099.8,1.19058957]
[1772059179811,0.0009,2100.3,2099.7,6.833432]
[1772059180005,4.80842645,2100.3,2099.4,2.26083352]
[1772059180240,4.80952645,2099.9,2099.2,3.45272972]
[1772059180611,6.01352645,2099.8,2099.2,2.26183352]
[1772059180816,6.01352645,2099.8,2099.2,3.45275495]
[1772059181119,5.99817273,2099.7,2099.2,2.26183352]
[1772059181441,5.99817273,2099.7,2099.2,0.001]
[1772059182510,5.99817273,2099.7,2099.2,2.26183352]
[1772059182716,5.99817273,2099.7,2099.2,0.001]
[1772059183524,5.99817737,2099.7,2099.2,0.001]
[1772059186045,5.99817737,2099.7,2099.0,0.001]
[1772059186818,5.99817737,2099.7,2098.7,0.001]
[1772059187017,5.99817737,2099.7,2098.8,3.319492]
[1772059187217,5.99817737,2099.7,2098.8,2.821195]
[1772059187436,5.99817737,2099.7,2098.7,0.001]
[1772059187747,5.99817737,2099.7,2098.8,6.833432]
[1772059188549,5.99817737,2099.7,2098.7,1.19220617]
[1772059188750,5.99817737,2099.7,2098.8,6.255985]
[1772059189425,5.99817737,2099.7,2098.7,0.001]
[1772059189626,5.99817737,2099.7,2098.2,4.189685]
[1772059189627,4.80752645,2099.4,2098.2,4.189685]
[1772059189826,1.62547885,2099.7,2098.2,4.189685]
[1772059189827,4.80752645,2099.2,2098.2,4.189685]
[1772059190719,4.80752645,2099.2,2098.1,4.62015835]
[1772059190942,4.80752645,2099.2,2098.2,5.385275]
[1772059191136,1.718,2099.1,2098.4,4.61770033]
[1772059191340,1.19104335,2099.0,2098.4,4.61770033]
[1772059191631,1.19104335,2099.0,2098.4,5.8090818]
[1772059191941,1.19104335,2099.0,2098.4,4.61770033]
[1772059192254,5.9985698,2099.0,2098.2,5.80423153]
[1772059192455,5.9985698,2099.0,2098.4,0.001]
[1772059193733,4.76505513,2099.5,2098.7,4.61024809]
[1772059193734,5.99838736,2099.4,2098.7,4.61024809]
[1772059193946,5.99838363,2099.4,2098.7,4.61024809]
[1772059195053,5.99838363,2099.4,2098.8,6.833432]
[1772059195227,5.99838363,2099.4,2098.8,3.081014]
[1772059195422,5.99838363,2099.4,2098.7,5.80141783]
[1772059195423,4.80752645,2099.4,2098.7,5.80141783]
[1772059195630,5.9983453,2099.4,2098.8,3.103961]
[1772059195838,5.9983453,2099.4,2098.8,2.835961]
[1772059196220,5.9983453,2099.4,2098.7,5.80144772]
[1772059196427,5.9983453,2099.4,2098.7,4.61024809]
[1772059196624,6.89726569,2099.6,2098.8,4.5914721]
[1772059196830,6.89726569,2099.6,2099.0,10.6295861]
[1772059196831,5.95601865,2099.6,2099.0,10.6295861]
[1772059197138,5.95601865,2099.6,2098.7,1.19121256]
[1772059197139,0.002,2100.0,2099.2,3.17919113]
[1772059197325,5.21319147,2100.3,2099.4,5.13298376]
[1772059197526,5.21319147,2100.1,2099.4,5.13298376]
[1772059197736,5.21319147,2100.1,2099.2,5.74985131]
[1772059198050,5.21319147,2100.1,2099.2,5.13298376]
[1772059198357,1.19036282,2100.2,2098.4,1.19234494]
[1772059198358,5.21319147,2099.9,2098.4,1.19234494]
[1772059198549,5.21319147,2099.7,2098.4,6.32535451]
[1772059198737,5.21319147,2099.7,2098.5,2.0]
[1772059198933,5.21319147,2099.7,2098.4,5.13398376]
[1772059199345,5.21319147,2099.7,2098.4,6.32536563]
[1772059199540,5.21319147,2099.5,2098.4,6.32536563]
[1772059199741,5.21319147,2099.5,2098.4,0.001]
[1772059200353,5.21209147,2099.3,2098.4,0.001]
[1772059200560,5.21319147,2099.1,2098.4,0.001]
[1772059200742,5.21319147,2099.0,2098.4,0.001]
[1772059201273,5.21319147,2099.0,2098.1,0.001]
[1772059201634,5.21319147,2098.7,2098.1,0.001]
[1772059201955,7.35019147,2098.9,2098.1,0.001]
[1772059202471,7.35019147,2098.9,2097.4,4.76735316]
[1772059202472,5.21319147,2098.7,2096.8,4.76873963]
[1772059202775,5.21319147,2098.7,2096.0,5.13298376]
[1772059202776,2.51242925,2097.4,2096.0,5.13298376]
[1772059203063,5.21319147,2097.2,2095.8,2.0]
[1772059203360,5.21319147,2097.1,2095.4,7.13298376]
[1772059203662,5.21319147,2096.9,2095.4,4.77213075]
[1772059203965,5.21319147,2096.9,2095.4,1.19308962]
[1772059203966,5.21319147,2096.5,2095.4,1.19308962]
[1772059204141,5.21319147,2097.0,2095.8,3.17919113]
[1772059204343,5.21319147,2096.9,2095.6,5.13298376]
[1772059204743,5.21319147,2096.9,2095.4,1.19308962]
[1772059204943,5.21319147,2096.9,2095.5,2.0]
[1772059205144,5.21319147,2096.9,2095.4,1.19308962]
[1772059205347,5.21319147,2096.6,2095.4,2.0]
[1772059205548,5.21319147,2096.2,2095.2,1.36078714]
[1772059206149,5.21319147,2096.2,2095.2,0.1675858]
[1772059206344,5.21319147,2096.2,2095.5,0.001]
[1772059206545,10.09850072,2096.5,2095.7,5.13298376]
[1772059206546,2.149,2096.5,2095.7,5.13298376]
[1772059206743,3.34149965,2096.5,2095.7,5.13298376]
[1772059206965,3.34147158,2096.5,2095.7,5.13298376]
[1772059207150,3.34147332,2096.5,2095.7,5.13298376]
[1772059207465,2.149,2096.5,2096.0,2.0]
[1772059207676,2.149,2096.5,2095.9,6.32574706]
[1772059208464,2.149,2096.5,2096.0,2.0]
[1772059209662,2.149,2096.5,2096.0,1.19271378]
[1772059209844,2.149,2096.5,2096.0,2.0]
[1772059210045,3.34146424,2096.5,2095.9,6.32574582]
[1772059210245,5.21319147,2096.3,2095.5,0.001]
[1772059210471,3.34146424,2096.5,2095.5,0.001]
[1772059210472,3.34146424,2096.5,2095.5,1.19402679]
[1772059210673,3.34146424,2096.5,2095.5,0.001]
[1772059210980,3.34146424,2096.5,2095.5,1.19400433]
[1772059211278,8.55465571,2096.5,2095.5,0.001]
[1772059211579,5.21319147,2096.4,2095.5,0.001]
[1772059212166,5.21319147,2096.4,2095.3,0.001]
[1772059212368,5.21319147,2096.4,2093.1,2.0]
[1772059212369,5.21319147,2095.0,2093.1,2.0]
[1772059212543,6.5,2093.3,2091.7,0.24831693]
[1772059212745,9.53757339,2094.0,2090.4,1.43512404]